[Event "*** Titled Tuesday 3|2 Blitz"]
[Site "Chess.com"]
[Date "2015.11.03"]
[Round "8"]
[White "kharposh"]
[Black "BIG_Pirate"]
[Result "1-0"]
[WhiteElo "2084"]
[BlackElo "2249"]
[TimeControl "180+2"]
[EndTime "12:41:07 PST"]
[Termination "kharposh won by resignation"]

1. e4 {[%clk 0:03:01.9]} 1... d5 {[%clk 0:02:59.9]} 2. exd5 {[%clk 0:03:01.8]}
2... Qxd5 {[%clk 0:03:00.9]} 3. Nc3 {[%clk 0:03:03.3]} 3... Qa5 {[%clk
0:03:01.6]} 4. d4 {[%clk 0:03:03.6]} 4... Nf6 {[%clk 0:02:58.9]} 5. Nf3 {[%clk
0:03:04.4]} 5... Bg4 {[%clk 0:02:59.4]} 6. h3 {[%clk 0:03:05.4]} 6... Bh5 {[%clk
0:03:00]} 7. g4 {[%clk 0:03:06.6]} 7... Bg6 {[%clk 0:02:59.8]} 8. Ne5 {[%clk
0:03:08]} 8... e6 {[%clk 0:03:00.2]} 9. Bg2 {[%clk 0:03:06.5]} 9... c6 {[%clk
0:03:00.3]} 10. Bd2 {[%clk 0:03:01]} 10... Qb6 {[%clk 0:02:58.2]} 11. Qe2 {[%clk
0:02:51.4]} 11... Qxd4 {[%clk 0:02:54.4]} 12. O-O-O {[%clk 0:02:48.7]} 12... Qb6
{[%clk 0:02:48.3]} 13. h4 {[%clk 0:02:45.2]} 13... Nbd7 {[%clk 0:01:39.4]} 14.
Nxd7 {[%clk 0:02:16.7]} 14... Nxd7 {[%clk 0:01:40.4]} 15. h5 {[%clk 0:02:16.9]}
15... Rg8 {[%clk 0:01:41.4]} 16. hxg6 {[%clk 0:02:10.5]} 16... hxg6 {[%clk
0:01:43.3]} 17. Bf4 {[%clk 0:02:03.3]} 17... O-O-O {[%clk 0:01:42.9]} 18. Rd3
{[%clk 0:01:50.2]} 18... Nc5 {[%clk 0:01:23.4]} 19. Rxd8+ {[%clk 0:01:49.1]}
19... Qxd8 {[%clk 0:01:25.3]} 20. Rd1 {[%clk 0:01:48.5]} 20... Qa5 {[%clk
0:01:21.5]} 21. Qe5 {[%clk 0:01:43.8]} 1-0

[Event "*** Titled Tuesday 3|2 Blitz"]
[Site "Chess.com"]
[Date "2015.11.03"]
[Round "8"]
[White "Saitama_Hero"]
[Black "Frolyanov_D"]
[Result "0-1"]
[WhiteElo "2197"]
[BlackElo "2387"]
[TimeControl "180+2"]
[EndTime "12:41:42 PST"]
[Termination "Frolyanov_D won by resignation"]

1. d4 {[%clk 0:03:01.9]} 1... Nf6 {[%clk 0:02:59.6]} 2. c4 {[%clk 0:03:03.3]}
2... g6 {[%clk 0:03:00]} 3. Nc3 {[%clk 0:03:03.9]} 3... d5 {[%clk 0:03:00.5]} 4.
cxd5 {[%clk 0:03:04.6]} 4... Nxd5 {[%clk 0:03:01.5]} 5. Bd2 {[%clk 0:03:05.7]}
5... Bg7 {[%clk 0:03:00.5]} 6. e4 {[%clk 0:03:06.2]} 6... Nxc3 {[%clk
0:02:58.6]} 7. Bxc3 {[%clk 0:03:08.1]} 7... O-O {[%clk 0:02:56.4]} 8. h4 {[%clk
0:03:08.2]} 8... h5 {[%clk 0:02:55.8]} 9. Qd2 {[%clk 0:02:57.2]} 9... Nc6 {[%clk
0:02:38.9]} 10. d5 {[%clk 0:02:20.4]} 10... Ne5 {[%clk 0:02:39.1]} 11. f4 {[%clk
0:02:12.2]} 11... Ng4 {[%clk 0:02:39.9]} 12. Bxg7 {[%clk 0:02:13.6]} 12... Kxg7
{[%clk 0:02:40.1]} 13. Be2 {[%clk 0:02:06.4]} 13... c6 {[%clk 0:02:31.4]} 14.
Bxg4 {[%clk 0:01:57.6]} 14... Bxg4 {[%clk 0:02:30.9]} 15. Qc3+ {[%clk
0:01:54.3]} 15... Kg8 {[%clk 0:02:30.8]} 16. dxc6 {[%clk 0:01:41.9]} 16... Qb6
{[%clk 0:02:31.1]} 17. Nf3 {[%clk 0:01:37.7]} 17... Rac8 {[%clk 0:02:27.7]} 18.
Ne5 {[%clk 0:01:37.4]} 18... Rfd8 {[%clk 0:01:59.1]} 19. Rc1 {[%clk 0:00:56]}
19... Rd4 {[%clk 0:01:53.1]} 20. Qe3 {[%clk 0:00:27.6]} 20... Rd1+ {[%clk
0:01:52.2]} 0-1

[Event "*** Titled Tuesday 3|2 Blitz"]
[Site "Chess.com"]
[Date "2015.11.03"]
[Round "8"]
[White "Rickstereo"]
[Black "GregShahade"]
[Result "0-1"]
[WhiteElo "2089"]
[BlackElo "2307"]
[TimeControl "180+2"]
[EndTime "12:42:09 PST"]
[Termination "GregShahade won by resignation"]

1. c4 {[%clk 0:03:01.9]} 1... c5 {[%clk 0:02:59.3]} 2. Nc3 {[%clk 0:02:59.1]}
2... g6 {[%clk 0:02:58.4]} 3. Nf3 {[%clk 0:02:56.6]} 3... Bg7 {[%clk 0:02:52]}
4. e3 {[%clk 0:02:57.7]} 4... Nf6 {[%clk 0:02:48.3]} 5. d4 {[%clk 0:02:58.6]}
5... cxd4 {[%clk 0:02:48.5]} 6. exd4 {[%clk 0:02:53.6]} 6... O-O {[%clk
0:02:32.5]} 7. d5 {[%clk 0:02:51.7]} 7... e6 {[%clk 0:02:28.2]} 8. Be2 {[%clk
0:02:48.2]} 8... exd5 {[%clk 0:02:28.7]} 9. cxd5 {[%clk 0:02:48.3]} 9... d6
{[%clk 0:02:29]} 10. O-O {[%clk 0:02:49.1]} 10... Bg4 {[%clk 0:02:23]} 11. Bf4
{[%clk 0:02:42.7]} 11... Re8 {[%clk 0:02:12.4]} 12. h3 {[%clk 0:02:42.8]} 12...
Bxf3 {[%clk 0:02:10.3]} 13. Bxf3 {[%clk 0:02:43.5]} 13... Qb6 {[%clk 0:02:01]}
14. Qb3 {[%clk 0:02:38.4]} 14... Qxb3 {[%clk 0:01:39.1]} 15. axb3 {[%clk
0:02:38.6]} 15... Bf8 {[%clk 0:01:40.5]} 16. Nb5 {[%clk 0:02:38.2]} 16... Nbd7
{[%clk 0:01:27.3]} 17. Nc7 {[%clk 0:02:37.8]} 17... Ne5 {[%clk 0:01:11.2]} 18.
Bxe5 {[%clk 0:02:36.5]} 18... dxe5 {[%clk 0:01:11.2]} 19. Nxe8 {[%clk
0:02:26.2]} 19... Nxe8 {[%clk 0:01:10.4]} 20. g4 {[%clk 0:02:12.4]} 20... f6
{[%clk 0:01:05]} 21. Rfc1 {[%clk 0:02:09]} 21... Bd6 {[%clk 0:01:04]} 22. Rc4
{[%clk 0:02:05]} 22... Kf8 {[%clk 0:00:50]} 23. Rac1 {[%clk 0:02:02.6]} 23...
Rd8 {[%clk 0:00:50.9]} 24. b4 {[%clk 0:01:51.5]} 24... a6 {[%clk 0:00:43.9]} 25.
Rc8 {[%clk 0:01:38]} 25... Rd7 {[%clk 0:00:44.8]} 26. Rb8 {[%clk 0:01:33.8]}
26... Bxb8 {[%clk 0:00:42.4]} 0-1

[Event "*** Titled Tuesday 3|2 Blitz"]
[Site "Chess.com"]
[Date "2015.11.03"]
[Round "8"]
[White "Boryboy"]
[Black "SenseiJulio"]
[Result "1-0"]
[WhiteElo "2475"]
[BlackElo "2560"]
[TimeControl "180+2"]
[EndTime "12:43:19 PST"]
[Termination "Boryboy won by resignation"]

1. d4 {[%clk 0:03:01.9]} 1... Nf6 {[%clk 0:02:58.9]} 2. Nf3 {[%clk 0:03:00.4]}
2... d5 {[%clk 0:02:58.9]} 3. c4 {[%clk 0:03:00.2]} 3... e6 {[%clk 0:02:59.1]}
4. g3 {[%clk 0:03:01.7]} 4... Be7 {[%clk 0:02:58.6]} 5. Bg2 {[%clk 0:03:02.8]}
5... O-O {[%clk 0:03:00.2]} 6. O-O {[%clk 0:03:03.6]} 6... c6 {[%clk 0:03:00.8]}
7. Qc2 {[%clk 0:03:04.5]} 7... b6 {[%clk 0:03:01.8]} 8. Nbd2 {[%clk 0:03:05.9]}
8... Bb7 {[%clk 0:03:02]} 9. e4 {[%clk 0:03:06.8]} 9... Na6 {[%clk 0:03:03]} 10.
e5 {[%clk 0:03:04]} 10... Nd7 {[%clk 0:03:00.2]} 11. Re1 {[%clk 0:03:05.1]}
11... c5 {[%clk 0:02:59.2]} 12. cxd5 {[%clk 0:03:03]} 12... Bxd5 {[%clk
0:02:57.7]} 13. Ne4 {[%clk 0:03:01.5]} 13... cxd4 {[%clk 0:02:56.6]} 14. Neg5
{[%clk 0:02:49.6]} 14... g6 {[%clk 0:02:55.7]} 15. Qd3 {[%clk 0:02:49.7]} 15...
Nb4 {[%clk 0:02:43.2]} 16. Qxd4 {[%clk 0:02:45.9]} 16... Bxf3 {[%clk 0:02:09.6]}
17. Bxf3 {[%clk 0:02:40.7]} 17... Nc2 {[%clk 0:02:09.6]} 18. Qh4 {[%clk
0:02:41.8]} 18... h5 {[%clk 0:01:49.3]} 19. Bf4 {[%clk 0:02:42]} 19... Nd4
{[%clk 0:01:40.6]} 20. Bxh5 {[%clk 0:02:38.4]} 20... gxh5 {[%clk 0:01:36.7]} 21.
Qxh5 {[%clk 0:02:33.1]} 21... Bxg5 {[%clk 0:01:38]} 22. Red1 {[%clk 0:02:29.7]}
22... Bxf4 {[%clk 0:01:26.4]} 23. Rxd4 {[%clk 0:02:26.6]} 23... Nf6 {[%clk
0:00:54.9]} 24. Qd1 {[%clk 0:02:11.6]} 24... Nd5 {[%clk 0:00:49.6]} 25. gxf4
{[%clk 0:02:12.3]} 25... Re8 {[%clk 0:00:31.4]} 26. f5 {[%clk 0:02:12.9]} 26...
Kf8 {[%clk 0:00:16.4]} 27. f6 {[%clk 0:02:11.7]} 27... Nxf6 {[%clk 0:00:12.7]}
28. Rxd8 {[%clk 0:02:12]} 28... Raxd8 {[%clk 0:00:13.3]} 29. Qf3 {[%clk
0:02:10.4]} 29... Nd5 {[%clk 0:00:14.1]} 30. Qa3+ {[%clk 0:02:10.5]} 30... Kg7
{[%clk 0:00:12.5]} 31. Kh1 {[%clk 0:02:12.1]} 31... Re7 {[%clk 0:00:08.1]} 32.
Rg1+ {[%clk 0:02:11.1]} 32... Kf8 {[%clk 0:00:09.6]} 33. Qh3 {[%clk 0:02:12]}
33... Ke8 {[%clk 0:00:10.5]} 34. Qd3 {[%clk 0:02:09]} 34... Kd7 {[%clk
0:00:09.9]} 35. Qb5+ {[%clk 0:02:09.6]} 35... Kc7 {[%clk 0:00:10.5]} 36. Rc1+
{[%clk 0:02:09.7]} 36... Kb8 {[%clk 0:00:11.6]} 37. a4 {[%clk 0:02:11.1]} 37...
Rh8 {[%clk 0:00:12]} 38. a5 {[%clk 0:02:09.4]} 38... Rb7 {[%clk 0:00:12.7]} 39.
a6 {[%clk 0:02:08.8]} 39... Re7 {[%clk 0:00:13.5]} 40. Rc6 {[%clk 0:02:05.3]}
40... Nf4 {[%clk 0:00:12.9]} 41. Qb4 {[%clk 0:02:02.9]} 41... Rd7 {[%clk
0:00:13.4]} 42. Qxf4 {[%clk 0:02:03.7]} 42... Rg8 {[%clk 0:00:13.1]} 43. Rd6
{[%clk 0:02:03.1]} 43... Rc7 {[%clk 0:00:13.4]} 44. Rd1 {[%clk 0:02:03.4]} 1-0

[Event "*** Titled Tuesday 3|2 Blitz"]
[Site "Chess.com"]
[Date "2015.11.03"]
[Round "8"]
[White "AnastasiaProtopopova"]
[Black "saraswathii"]
[Result "1-0"]
[WhiteElo "1813"]
[BlackElo "1866"]
[TimeControl "180+2"]
[EndTime "12:43:30 PST"]
[Termination "AnastasiaProtopopova won by resignation"]

1. Nf3 {[%clk 0:02:48]} 1... Nc6 {[%clk 0:02:57.2]} 2. d4 {[%clk 0:02:48.5]}
2... d5 {[%clk 0:02:56.7]} 3. c4 {[%clk 0:02:49.5]} 3... e6 {[%clk 0:02:49.9]}
4. Bg5 {[%clk 0:02:38.3]} 4... Bb4+ {[%clk 0:02:47.4]} 5. Nc3 {[%clk 0:02:37.3]}
5... Nf6 {[%clk 0:02:46.3]} 6. e3 {[%clk 0:02:37.5]} 6... h6 {[%clk 0:02:46.1]}
7. Bf4 {[%clk 0:02:32.6]} 7... Ne4 {[%clk 0:02:43.5]} 8. Qc2 {[%clk 0:02:31.7]}
8... O-O {[%clk 0:02:36]} 9. Bd3 {[%clk 0:02:31.9]} 9... f5 {[%clk 0:02:36.2]}
10. O-O {[%clk 0:02:31.5]} 10... g5 {[%clk 0:02:27]} 11. cxd5 {[%clk 0:02:06.8]}
11... exd5 {[%clk 0:02:25.6]} 12. Be5 {[%clk 0:01:58]} 12... g4 {[%clk
0:02:23.2]} 13. Ne1 {[%clk 0:01:53.5]} 13... Nxe5 {[%clk 0:02:23.1]} 14. dxe5
{[%clk 0:01:51.2]} 14... Nxc3 {[%clk 0:01:54.1]} 15. bxc3 {[%clk 0:01:50.5]}
15... Be7 {[%clk 0:01:54.3]} 16. c4 {[%clk 0:01:48.1]} 16... c6 {[%clk
0:01:54.5]} 17. cxd5 {[%clk 0:01:42.1]} 17... cxd5 {[%clk 0:01:54.4]} 18. f3
{[%clk 0:01:40.3]} 18... Qb6 {[%clk 0:01:46.4]} 19. Qe2 {[%clk 0:01:26.8]} 19...
Bc5 {[%clk 0:01:43.8]} 20. Nc2 {[%clk 0:01:27.1]} 20... f4 {[%clk 0:01:43.9]}
21. fxg4 {[%clk 0:01:23.3]} 21... Bxe3+ {[%clk 0:01:37.1]} 22. Kh1 {[%clk
0:01:23.4]} 22... d4 {[%clk 0:01:33.4]} 23. g5 {[%clk 0:01:09.4]} 23... hxg5
{[%clk 0:01:28.5]} 24. Qh5 {[%clk 0:01:08.9]} 24... Qc7 {[%clk 0:01:16.2]} 25.
Nxe3 {[%clk 0:00:48.8]} 25... dxe3 {[%clk 0:01:10.5]} 26. Qxg5+ {[%clk
0:00:40.7]} 26... Qg7 {[%clk 0:01:09.4]} 27. Qh4 {[%clk 0:00:32.5]} 27... Bf5
{[%clk 0:00:33.6]} 28. Bc4+ {[%clk 0:00:32.3]} 1-0

[Event "*** Titled Tuesday 3|2 Blitz"]
[Site "Chess.com"]
[Date "2015.11.03"]
[Round "8"]
[White "Baggio95"]
[Black "Malev212"]
[Result "0-1"]
[WhiteElo "2373"]
[BlackElo "2253"]
[TimeControl "180+2"]
[EndTime "12:43:54 PST"]
[Termination "Malev212 won by resignation"]

1. e4 {[%clk 0:03:00.6]} 1... c5 {[%clk 0:03:00.4]} 2. Nf3 {[%clk 0:03:00.9]}
2... a6 {[%clk 0:03:01.2]} 3. Be2 {[%clk 0:02:59.7]} 3... e6 {[%clk 0:03:01.1]}
4. d4 {[%clk 0:03:00]} 4... cxd4 {[%clk 0:03:01.4]} 5. Nxd4 {[%clk 0:03:01.1]}
5... Nf6 {[%clk 0:03:01.3]} 6. Nc3 {[%clk 0:03:01.6]} 6... d6 {[%clk 0:03:02.3]}
7. O-O {[%clk 0:03:00.8]} 7... Be7 {[%clk 0:03:02.7]} 8. Be3 {[%clk 0:02:59.2]}
8... Qc7 {[%clk 0:03:02.2]} 9. f4 {[%clk 0:02:57.2]} 9... b5 {[%clk 0:03:03.1]}
10. Bf3 {[%clk 0:02:54.5]} 10... Bb7 {[%clk 0:03:03.3]} 11. e5 {[%clk
0:02:45.4]} 11... dxe5 {[%clk 0:03:03.7]} 12. fxe5 {[%clk 0:02:42.1]} 12... Qxe5
{[%clk 0:02:55.4]} 13. Qd2 {[%clk 0:02:16.4]} 13... Bxf3 {[%clk 0:02:51.9]} 14.
Rxf3 {[%clk 0:02:12.8]} 14... O-O {[%clk 0:02:44.6]} 15. Re1 {[%clk 0:02:06.6]}
15... b4 {[%clk 0:02:44]} 16. Nce2 {[%clk 0:01:58.4]} 16... Ng4 {[%clk
0:02:34.2]} 17. Bf4 {[%clk 0:01:56.1]} 17... Qc5 {[%clk 0:02:34.8]} 18. h3
{[%clk 0:01:52.4]} 18... Nf6 {[%clk 0:02:34.6]} 19. Be3 {[%clk 0:01:47.4]} 19...
Qc7 {[%clk 0:02:33.5]} 20. Ng3 {[%clk 0:01:38.6]} 20... Nc6 {[%clk 0:02:33.4]}
21. Nxc6 {[%clk 0:01:37.5]} 21... Qxc6 {[%clk 0:02:33.7]} 22. Ref1 {[%clk
0:01:34.1]} 22... Rad8 {[%clk 0:02:33.1]} 23. Qe2 {[%clk 0:01:31.6]} 23... Nd5
{[%clk 0:02:30.6]} 24. Bd4 {[%clk 0:01:29.7]} 24... Bc5 {[%clk 0:02:22.4]} 25.
Bxc5 {[%clk 0:01:29.5]} 25... Qxc5+ {[%clk 0:02:23.2]} 26. Kh1 {[%clk 0:01:31]}
26... Rc8 {[%clk 0:02:19.5]} 27. R1f2 {[%clk 0:01:30.8]} 27... Qc4 {[%clk
0:02:19]} 28. Qd2 {[%clk 0:01:29.1]} 28... f5 {[%clk 0:02:10.5]} 29. Nh5 {[%clk
0:01:26.7]} 29... Rf7 {[%clk 0:02:08.5]} 30. Qg5 {[%clk 0:01:19.2]} 30... Qxa2
{[%clk 0:02:04]} 31. g4 {[%clk 0:01:02.8]} 31... Qxb2 {[%clk 0:01:10.8]} 32.
gxf5 {[%clk 0:01:00.5]} 32... Qe5 {[%clk 0:01:09.2]} 33. Qd2 {[%clk 0:00:34]}
33... Rc3 {[%clk 0:01:01.6]} 34. f6 {[%clk 0:00:27]} 34... Rxf3 {[%clk
0:00:56.6]} 35. Rxf3 {[%clk 0:00:26.6]} 35... Qxh5 {[%clk 0:00:56.3]} 36. Rg3
{[%clk 0:00:27.6]} 36... Rxf6 {[%clk 0:00:49.6]} 0-1

[Event "*** Titled Tuesday 3|2 Blitz"]
[Site "Chess.com"]
[Date "2015.11.03"]
[Round "8"]
[White "Sadovsky_Artem"]
[Black "Oligan22"]
[Result "1-0"]
[WhiteElo "2405"]
[BlackElo "2169"]
[TimeControl "180+2"]
[EndTime "12:44:50 PST"]
[Termination "Sadovsky_Artem won on time"]

1. e4 {[%clk 0:02:46]} 1... c5 {[%clk 0:02:22.7]} 2. Nf3 {[%clk 0:02:45.4]} 2...
e6 {[%clk 0:02:22.7]} 3. c4 {[%clk 0:02:45.2]} 3... a6 {[%clk 0:02:22.5]} 4. d4
{[%clk 0:02:33]} 4... cxd4 {[%clk 0:02:23.2]} 5. Nxd4 {[%clk 0:02:34.6]} 5...
Qc7 {[%clk 0:02:24.1]} 6. Nc3 {[%clk 0:02:34.2]} 6... Nf6 {[%clk 0:02:24.5]} 7.
Be2 {[%clk 0:02:34]} 7... Bb4 {[%clk 0:02:24.1]} 8. f3 {[%clk 0:02:32.5]} 8...
d5 {[%clk 0:02:17]} 9. Qa4+ {[%clk 0:02:20.8]} 9... Nc6 {[%clk 0:02:17.2]} 10.
Nxc6 {[%clk 0:02:21.6]} 10... Bxc3+ {[%clk 0:02:18]} 11. bxc3 {[%clk 0:02:23.1]}
11... bxc6 {[%clk 0:02:19]} 12. cxd5 {[%clk 0:02:23.8]} 12... exd5 {[%clk
0:02:19.5]} 13. O-O {[%clk 0:01:16.9]} 13... O-O {[%clk 0:02:16.5]} 14. exd5
{[%clk 0:01:10.4]} 14... cxd5 {[%clk 0:02:13.4]} 15. Qd4 {[%clk 0:01:10.5]}
15... Be6 {[%clk 0:02:08.3]} 16. Bf4 {[%clk 0:01:11.1]} 16... Qc6 {[%clk
0:02:04.7]} 17. Rab1 {[%clk 0:01:09.5]} 17... Rfc8 {[%clk 0:02:02.3]} 18. Be5
{[%clk 0:01:05.7]} 18... Ne8 {[%clk 0:02:01]} 19. Rb6 {[%clk 0:01:05]} 19... Qd7
{[%clk 0:01:48.2]} 20. Bxa6 {[%clk 0:01:06.6]} 20... Rc6 {[%clk 0:01:19.1]} 21.
Bb5 {[%clk 0:01:03.5]} 21... Rac8 {[%clk 0:01:11.1]} 22. Rxc6 {[%clk 0:01:00]}
22... Rxc6 {[%clk 0:01:13]} 23. a4 {[%clk 0:00:45]} 23... f6 {[%clk 0:00:53.5]}
24. Bg3 {[%clk 0:00:45.1]} 24... Nc7 {[%clk 0:00:47.7]} 25. Bxc7 {[%clk
0:00:40.4]} 25... Qxc7 {[%clk 0:00:47.3]} 26. Bxc6 {[%clk 0:00:42.1]} 26... Qxc6
{[%clk 0:00:49.2]} 27. a5 {[%clk 0:00:39.7]} 27... Kf7 {[%clk 0:00:40]} 28. Re1
{[%clk 0:00:35]} 28... Bc8 {[%clk 0:00:38.8]} 29. Qb6 {[%clk 0:00:35.1]} 29...
Qxc3 {[%clk 0:00:35.2]} 30. Rd1 {[%clk 0:00:21.2]} 30... Be6 {[%clk 0:00:29.2]}
31. a6 {[%clk 0:00:19.4]} 31... Qc2 {[%clk 0:00:22.6]} 32. Qd4 {[%clk
0:00:20.2]} 32... Qa2 {[%clk 0:00:14.7]} 33. a7 {[%clk 0:00:21.2]} 33... Bh3
{[%clk 0:00:05.4]} 34. Qxd5+ {[%clk 0:00:17]} 34... Qxd5 {[%clk 0:00:02]} 35.
Rxd5 {[%clk 0:00:18.3]} 35... Be6 {[%clk 0:00:02.5]} 36. Rc5 {[%clk 0:00:18.2]}
1-0

[Event "*** Titled Tuesday 3|2 Blitz"]
[Site "Chess.com"]
[Date "2015.11.03"]
[Round "8"]
[White "Makalexa"]
[Black "1random"]
[Result "0-1"]
[WhiteElo "2085"]
[BlackElo "1956"]
[TimeControl "180+2"]
[EndTime "12:45:24 PST"]
[Termination "1random won by resignation"]

1. e4 {[%clk 0:03:01.9]} 1... c5 {[%clk 0:03:00.8]} 2. Nf3 {[%clk 0:03:01.6]}
2... d6 {[%clk 0:03:02.1]} 3. d4 {[%clk 0:03:01.9]} 3... cxd4 {[%clk 0:03:04]}
4. Nxd4 {[%clk 0:03:03.8]} 4... Nf6 {[%clk 0:03:05.6]} 5. Nc3 {[%clk 0:03:04]}
5... Nc6 {[%clk 0:03:07.3]} 6. Bg5 {[%clk 0:03:02.8]} 6... e6 {[%clk 0:03:07.6]}
7. Qd2 {[%clk 0:03:02.8]} 7... Bd7 {[%clk 0:03:07.1]} 8. O-O-O {[%clk
0:03:00.2]} 8... a6 {[%clk 0:03:08]} 9. f4 {[%clk 0:03:00.3]} 9... b5 {[%clk
0:02:59.1]} 10. Nxc6 {[%clk 0:02:42.1]} 10... Bxc6 {[%clk 0:02:52]} 11. Bd3
{[%clk 0:02:42.6]} 11... Be7 {[%clk 0:02:43.4]} 12. Rhe1 {[%clk 0:02:40.2]}
12... Qb6 {[%clk 0:02:42.2]} 13. Bxf6 {[%clk 0:02:26.7]} 13... Bxf6 {[%clk
0:02:26.7]} 14. Nd5 {[%clk 0:02:27.1]} 14... Bxd5 {[%clk 0:02:02.8]} 15. exd5
{[%clk 0:02:27]} 15... e5 {[%clk 0:02:02.3]} 16. Bf5 {[%clk 0:02:16.1]} 16...
O-O {[%clk 0:02:00.7]} 17. Kb1 {[%clk 0:02:06.7]} 17... g6 {[%clk 0:01:57.3]}
18. Bd7 {[%clk 0:02:05.3]} 18... exf4 {[%clk 0:01:56.9]} 19. Qxf4 {[%clk
0:02:03.8]} 19... Be5 {[%clk 0:01:58]} 20. Qh4 {[%clk 0:01:57.5]} 20... a5
{[%clk 0:01:48.1]} 21. Bc6 {[%clk 0:01:45.6]} 21... Rac8 {[%clk 0:01:48.2]} 22.
Rd3 {[%clk 0:01:45.4]} 22... f5 {[%clk 0:01:34]} 23. g4 {[%clk 0:01:42.6]} 23...
f4 {[%clk 0:01:30.3]} 24. Rh3 {[%clk 0:01:38.5]} 24... Rc7 {[%clk 0:01:30.4]}
25. Qh6 {[%clk 0:01:21.7]} 25... b4 {[%clk 0:01:26.5]} 26. Qg5 {[%clk
0:01:04.1]} 26... Qd4 {[%clk 0:01:23.3]} 27. c3 {[%clk 0:01:00.5]} 27... bxc3
{[%clk 0:01:24.4]} 28. Rxc3 {[%clk 0:00:59]} 28... Bf6 {[%clk 0:01:16.8]} 29.
Qh6 {[%clk 0:00:55.4]} 29... Qd2 {[%clk 0:01:15.8]} 30. Rec1 {[%clk 0:00:45.1]}
30... Bxc3 {[%clk 0:01:14.7]} 31. Rxc3 {[%clk 0:00:44.5]} 31... Qe1+ {[%clk
0:00:57.2]} 32. Rc1 {[%clk 0:00:41.9]} 32... Qe4+ {[%clk 0:00:58.8]} 33. Ka1
{[%clk 0:00:41.3]} 33... f3 {[%clk 0:00:57.1]} 34. Qd2 {[%clk 0:00:26.8]} 34...
f2 {[%clk 0:00:55.1]} 35. Rf1 {[%clk 0:00:27.2]} 35... Qc4 {[%clk 0:00:47.9]}
36. Qd1 {[%clk 0:00:22.9]} 36... Re7 {[%clk 0:00:40.7]} 37. a4 {[%clk
0:00:21.5]} 37... Re1 {[%clk 0:00:40.5]} 38. Rxe1 {[%clk 0:00:20.7]} 38...
fxe1=N {[%clk 0:00:35.9]} 39. Bb5 {[%clk 0:00:16.9]} 39... Qe4 {[%clk
0:00:27.2]} 40. g5 {[%clk 0:00:14.6]} 40... Nc2+ {[%clk 0:00:28.2]} 41. Ka2
{[%clk 0:00:14.5]} 41... Nb4+ {[%clk 0:00:29.4]} 42. Ka1 {[%clk 0:00:12.7]}
42... Qxd5 {[%clk 0:00:29.4]} 43. Qxd5+ {[%clk 0:00:06.9]} 43... Nxd5 {[%clk
0:00:31.3]} 44. Bc4 {[%clk 0:00:07.2]} 44... Rf5 {[%clk 0:00:33]} 45. b4 {[%clk
0:00:07.7]} 45... axb4 {[%clk 0:00:33.8]} 46. a5 {[%clk 0:00:09.1]} 46... Kf8
{[%clk 0:00:35.5]} 47. a6 {[%clk 0:00:10.1]} 47... Nb6 {[%clk 0:00:37.2]} 48.
Bd3 {[%clk 0:00:09.6]} 48... Ra5+ {[%clk 0:00:38.5]} 49. Kb2 {[%clk 0:00:10.8]}
49... Ke7 {[%clk 0:00:40.2]} 50. Kb3 {[%clk 0:00:10.7]} 50... Nd5 {[%clk
0:00:41.3]} 51. Bc4 {[%clk 0:00:10.7]} 51... Ke6 {[%clk 0:00:42.9]} 52. Bxd5+
{[%clk 0:00:10]} 52... Kxd5 {[%clk 0:00:44.8]} 53. Kxb4 {[%clk 0:00:11.2]} 53...
Rxa6 {[%clk 0:00:46.5]} 0-1

[Event "*** Titled Tuesday 3|2 Blitz"]
[Site "Chess.com"]
[Date "2015.11.03"]
[Round "8"]
[White "ilmago"]
[Black "kikydu96"]
[Result "0-1"]
[WhiteElo "1916"]
[BlackElo "2239"]
[TimeControl "180+2"]
[EndTime "12:45:31 PST"]
[Termination "kikydu96 won by resignation"]

1. e4 {[%clk 0:03:01.9]} 1... e5 {[%clk 0:03:00.7]} 2. Nf3 {[%clk 0:03:01.6]}
2... Nc6 {[%clk 0:03:01.6]} 3. c3 {[%clk 0:03:02.6]} 3... d5 {[%clk 0:02:33.2]}
4. Bb5 {[%clk 0:02:57.9]} 4... dxe4 {[%clk 0:02:29.2]} 5. Nxe5 {[%clk
0:02:58.1]} 5... Qd5 {[%clk 0:02:30.1]} 6. Bxc6+ {[%clk 0:02:49.8]} 6... bxc6
{[%clk 0:02:30.5]} 7. d4 {[%clk 0:02:50]} 7... exd3 {[%clk 0:02:30.7]} 8. Nxd3
{[%clk 0:02:50.6]} 8... Ba6 {[%clk 0:02:28.5]} 9. Nb4 {[%clk 0:02:42.9]} 9...
Bxb4 {[%clk 0:02:26.2]} 10. Qxd5 {[%clk 0:02:38.9]} 10... cxd5 {[%clk
0:02:24.6]} 11. cxb4 {[%clk 0:02:39.2]} 11... Nf6 {[%clk 0:02:24.3]} 12. Bf4
{[%clk 0:02:34.7]} 12... c6 {[%clk 0:02:21.9]} 13. Nd2 {[%clk 0:02:32]} 13...
O-O {[%clk 0:02:21.7]} 14. O-O-O {[%clk 0:02:32.1]} 14... Ng4 {[%clk 0:02:19.3]}
15. Bg3 {[%clk 0:02:25.5]} 15... f5 {[%clk 0:02:20]} 16. f3 {[%clk 0:02:21.1]}
16... Ne3 {[%clk 0:02:20.6]} 17. Rdg1 {[%clk 0:02:18.8]} 17... f4 {[%clk
0:02:18.9]} 18. Bf2 {[%clk 0:02:17.9]} 18... Rfe8 {[%clk 0:02:20.1]} 19. Nb3
{[%clk 0:02:07.9]} 19... Bc4 {[%clk 0:02:16.5]} 20. g3 {[%clk 0:02:01.1]} 20...
Rab8 {[%clk 0:02:12.9]} 21. Nd4 {[%clk 0:01:54]} 21... Bxa2 {[%clk 0:02:07]} 22.
gxf4 {[%clk 0:01:50.6]} 22... Rxb4 {[%clk 0:02:04.4]} 23. Bxe3 {[%clk
0:01:49.7]} 23... Rxe3 {[%clk 0:02:03.7]} 24. Nf5 {[%clk 0:01:50.6]} 24... Rxf3
{[%clk 0:01:46.8]} 25. Rxg7+ {[%clk 0:01:49.8]} 25... Kf8 {[%clk 0:01:47.4]} 26.
Rxa7 {[%clk 0:01:49.2]} 26... Rc4+ {[%clk 0:01:42.1]} 27. Kd2 {[%clk 0:01:48.5]}
27... Bb3 {[%clk 0:01:36.6]} 28. Ne3 {[%clk 0:01:35.3]} 28... Rcxf4 {[%clk
0:01:27.7]} 29. Rb7 {[%clk 0:01:32.8]} 29... Ba4 {[%clk 0:01:21.1]} 30. Ra1
{[%clk 0:01:28.7]} 30... Rf2+ {[%clk 0:01:22]} 31. Ke1 {[%clk 0:01:18.7]} 31...
Rxh2 {[%clk 0:01:17.7]} 32. Ra3 {[%clk 0:00:59.6]} 32... Re4 {[%clk 0:00:56.2]}
33. b4 {[%clk 0:00:55.9]} 33... d4 {[%clk 0:00:45.1]} 34. Rxa4 {[%clk
0:00:56.4]} 34... Rxe3+ {[%clk 0:00:46.4]} 35. Kf1 {[%clk 0:00:57.5]} 35... Rh6
{[%clk 0:00:38.1]} 36. Ra8+ {[%clk 0:00:54.9]} 36... Re8 {[%clk 0:00:38.8]} 37.
Raa7 {[%clk 0:00:56.5]} 37... Rf6+ {[%clk 0:00:38.7]} 38. Kg2 {[%clk 0:00:56.2]}
38... Rg6+ {[%clk 0:00:32.2]} 39. Kf3 {[%clk 0:00:56.6]} 39... h5 {[%clk
0:00:32.9]} 40. Rh7 {[%clk 0:00:51.8]} 40... d3 {[%clk 0:00:33.1]} 41. Rad7
{[%clk 0:00:48.4]} 41... Kg8 {[%clk 0:00:28.2]} 42. Rxh5 {[%clk 0:00:48.5]}
42... Rf6+ {[%clk 0:00:26.5]} 43. Kg4 {[%clk 0:00:48.3]} 43... Re4+ {[%clk
0:00:27]} 44. Kg5 {[%clk 0:00:48.6]} 44... Rfe6 {[%clk 0:00:23.4]} 45. Rxd3
{[%clk 0:00:40.9]} 45... R6e5+ {[%clk 0:00:21.2]} 46. Kg6 {[%clk 0:00:41.4]}
46... Rg4+ {[%clk 0:00:22.1]} 47. Kf6 {[%clk 0:00:36.6]} 47... Rxh5 {[%clk
0:00:22.2]} 48. Rd8+ {[%clk 0:00:37.3]} 48... Kh7 {[%clk 0:00:22.8]} 49. Rd7+
{[%clk 0:00:38.7]} 49... Kh6 {[%clk 0:00:23]} 50. Rc7 {[%clk 0:00:39.8]} 50...
Rg6+ {[%clk 0:00:23.9]} 51. Kf7 {[%clk 0:00:40]} 0-1